bitfinex-derivatives/quotes_SOLF0:USTF0_20240905
["timestamp","ask_amount","ask_price","bid_price","bid_amount"]
[1725540077133,0.04771436,132.63,132.62,3.7703]
[1725540078831,0.04771436,132.63,132.61,1.4141]
[1725540079039,0.04771436,132.63,132.6,1.35219726]
[1725540079346,3.7705,132.62,132.6,0.05379726]
[1725540080738,3.7706,132.61,132.6,0.05379726]
[1725540082833,3.7705,132.62,132.6,0.05379726]
[1725540083235,0.04771436,132.63,132.6,0.05379726]
[1725540083741,3.7706,132.61,132.6,0.05379726]
[1725540086037,0.04771436,132.63,132.6,0.05379726]
[1725540086640,3.81781436,132.63,132.6,0.05379726]
[1725540086843,0.04771436,132.63,132.61,28.97]
[1725540087141,0.04771436,132.63,132.62,3.7703]
[1725540087439,0.04771436,132.63,132.61,28.97]
[1725540087440,1.3845,132.69,132.61,31.7451]
[1725540087644,1.3845,132.69,132.64,28.97]
[1725540088133,3.7689,132.68,132.64,28.97]
[1725540088331,0.05091966,132.67,132.65,0.0486868]
[1725540088535,3.81991966,132.67,132.65,0.0486868]
[1725540088737,0.05091966,132.67,132.65,0.0486868]
[1725540089337,3.7692,132.66,132.65,0.0486868]
[1725540090348,3.7705,132.62,132.58,28.97]
[1725540090842,3.75490033,132.66,132.58,3.7714]
[1725540091038,28.97,132.67,132.56,28.97]
[1725540091240,3.7291588,132.66,132.58,28.97]
[1725540091443,0.05719474,132.63,132.6,29.01876469]
[1725540091641,0.05434542,132.63,132.6,29.02636143]
[1725540092743,0.05434542,132.63,132.61,3.7706]
[1725540092947,0.05434542,132.63,132.6,0.05636143]
[1725540093845,3.7706,132.61,132.6,0.05636143]
[1725540094946,3.7716,132.58,132.55,3.7722]
[1725540096044,3.82970542,132.58,132.55,3.82562911]
[1725540096248,0.05810542,132.58,132.56,28.97]
[1725540096650,0.05810542,132.58,132.57,3.7717]
[1725540096954,32.7715843,132.66,132.56,28.97]
[1725540096955,3.8015843,132.66,132.56,28.97]
[1725540097146,2.6291,132.67,132.59,28.97]
[1725540097546,2.6291,132.67,132.53,28.97]
[1725540097852,32.7776614,132.73,132.63,3.7699]
[1725540098050,2.6291,132.71,132.66,0.04784931]
[1725540098248,3.7689,132.67,132.66,0.04784931]
[1725540098949,3.7699,132.64,132.62,28.97]
[1725540099147,3.7699,132.64,132.61,3.7704]
[1725540099347,31.5991,132.71,132.61,3.7704]
[1725540099745,3.7696,132.65,132.61,3.7704]
[1725540099955,0.05668474,132.64,132.62,0.05600777]
[1725540100149,0.05331455,132.64,132.62,0.05641074]
[1725540100751,3.82331455,132.64,132.62,0.05641074]
[1725540101452,0.05331455,132.64,132.62,0.05641074]
[1725540101952,3.82321455,132.64,132.62,0.05641074]
[1725540102349,0.05331455,132.64,132.62,29.02641074]
[1725540103155,0.05331455,132.64,132.62,32.79661074]
[1725540103453,0.05331455,132.64,132.63,3.77]
[1725540104354,3.7687,132.68,132.64,3.7696]
[1725540104554,1.3761,132.7,132.65,28.97]
[1725540104853,2.6291,132.71,132.67,28.97]
[1725540105151,5.27340003,132.74,132.67,28.97]
[1725540105454,0.04987678,132.72,132.69,0.05313224]
[1725540106047,0.04987678,132.72,132.69,29.02313224]
[1725540106243,0.04987678,132.72,132.7,3.7679]
[1725540106449,0.04987678,132.72,132.7,32.7379]
[1725540106651,0.04987678,132.72,132.7,28.97]
[1725540106855,0.04987678,132.72,132.71,3.7678]
[1725540107055,0.04987678,132.72,132.7,28.97]
[1725540107449,0.04987678,132.72,132.7,32.7379]
[1725540107649,0.04987678,132.72,132.7,28.97]
[1725540108053,0.04987678,132.72,132.69,3.82143224]
[1725540108250,0.04987678,132.72,132.69,0.05313224]
[1725540108759,3.768,132.7,132.69,0.05313224]
[1725540113860,3.7678,132.71,132.69,0.05313224]
[1725540114755,3.81737678,132.72,132.69,3.82143224]
[1725540115363,3.7678,132.71,132.69,0.05313224]
[1725540116559,0.04987678,132.72,132.69,0.05313224]
[1725540117057,3.768,132.7,132.69,0.05313224]
[1725540117264,28.97,132.71,132.62,30.3491]
[1725540117465,2.6913,132.7,132.64,28.97]
[1725540118160,0.05134678,132.68,132.66,0.04850867]
[1725540118361,3.769,132.67,132.66,0.04850867]
[1725540119767,0.05134678,132.68,132.66,0.04850867]
[1725540119768,3.82004678,132.68,132.66,0.04850867]
[1725540120469,0.05134678,132.68,132.66,29.01850867]
[1725540121058,0.05134678,132.68,132.66,0.04850867]
[1725540121665,3.7689,132.67,132.66,0.04850867]
[1725540122065,3.82004678,132.68,132.66,0.04850867]
[1725540122267,0.05134678,132.68,132.66,0.04850867]
[1725540122667,3.82014678,132.68,132.66,0.04850867]
[1725540123469,3.7689,132.67,132.66,0.04850867]
[1725540123871,3.82004678,132.68,132.66,0.04850867]
[1725540124968,0.05134678,132.68,132.66,32.78770867]
[1725540125365,3.82014678,132.68,132.66,29.01850867]
[1725540126070,3.7689,132.67,132.66,0.04850867]
[1725540127772,3.7699,132.64,132.61,32.7405]
[1725540128573,3.71965012,132.66,132.61,28.97]
[1725540128876,0.0532368,132.65,132.62,0.05315569]
[1725540129180,3.77,132.63,132.62,0.05315569]
[1725540131574,3.7698,132.64,132.62,0.05315569]
[1725540131871,0.0532368,132.65,132.62,3.82345569]
[1725540132077,3.7699,132.64,132.62,0.05315569]
[1725540132674,0.0532368,132.65,132.62,29.02315569]
[1725540132983,3.8228368,132.65,132.62,32.79345569]
[1725540133482,3.7697,132.64,132.62,29.02315569]
[1725540133675,0.0532368,132.65,132.62,29.02315569]
[1725540133977,3.7697,132.64,132.62,29.02315569]
[1725540134776,3.7697,132.64,132.62,0.05315569]
[1725540136582,3.7697,132.64,132.62,3.82345569]
[1725540136783,3.8228368,132.65,132.63,28.97]
[1725540137180,0.0532368,132.65,132.62,0.05315569]
[1725540137379,3.77,132.63,132.62,0.05315569]
[1725540138884,0.0532368,132.65,132.62,29.02315569]
[1725540139275,0.0532368,132.65,132.62,0.05315569]
[1725540139583,3.77,132.63,132.62,0.05315569]
[1725540139772,0.0532368,132.65,132.62,32.79345569]
[1725540139981,3.8229368,132.65,132.62,32.79345569]
[1725540140276,0.0532368,132.65,132.62,29.02315569]
[1725540140473,3.7699,132.64,132.62,29.02315569]
[1725540140983,0.0532368,132.65,132.62,29.02315569]
[1725540141280,3.7697,132.64,132.62,29.02315569]
[1725540141978,3.8227368,132.65,132.62,32.79345569]
[1725540142172,0.0532368,132.65,132.62,29.02315569]
[1725540142785,0.0532368,132.65,132.62,32.79335569]
[1725540143084,0.0532368,132.65,132.62,0.05315569]
[1725540143284,3.77,132.63,132.62,0.05315569]
[1725540146181,1.3737,132.64,132.57,28.97]
[1725540146382,1.3762,132.63,132.57,28.97]
[1725540146684,1.3762,132.63,132.53,28.97]
[1725540146685,30.3462,132.63,132.53,28.97]
[1725540147079,30.3462,132.63,132.47,2.6548]
[1725540147080,28.97,132.61,132.51,28.97]
[1725540147280,3.772,132.56,132.55,0.05595109]
[1725540148676,0.05109801,132.57,132.35,7.87771433]
[1725540148982,1.3175,132.55,132.46,28.97]
[1725540149281,5.17283071,132.55,132.46,32.7447]
[1725540149789,3.7736,132.51,132.49,0.05481669]
[1725540150081,0.04931573,132.52,132.49,0.05481669]
[1725540150478,3.82271573,132.52,132.49,0.05481669]
[1725540150678,0.04931573,132.52,132.49,29.02481669]
[1725540151080,0.04931573,132.52,132.51,32.7434]
[1725540153490,0.04931573,132.52,132.51,28.97]
[1725540154189,0.04931573,132.52,132.51,32.7434]
[1725540154887,0.04931573,132.52,132.51,28.97]
[1725540155288,0.04931573,132.52,132.49,29.02481669]
[1725540155484,0.04931573,132.52,132.49,0.05481669]
[1725540156382,3.7737,132.5,132.49,0.05481669]
[1725540156683,3.7737,132.5,132.41,2.703]
[1725540156684,3.72574922,132.5,132.41,36.77150191]
[1725540156886,2.6828,132.51,132.41,32.9797]
[1725540157086,2.6828,132.51,132.41,36.83189294]
[1725540157580,3.7753,132.45,132.41,40.60799294]
[1725540157786,0.04813068,132.44,132.42,0.05213955]
[1725540158490,0.04813068,132.44,132.43,28.97]
[1725540158697,0.04813068,132.44,132.42,0.05213955]
[1725540158992,3.82363068,132.44,132.42,0.05213955]
[1725540159184,0.04813068,132.44,132.42,0.05213955]
[1725540159590,3.7757,132.43,132.42,0.05213955]
[1725540160988,28.97,132.45,132.36,28.97]
[1725540161195,1.3042,132.43,132.36,28.97]
[1725540161494,3.777,132.39,132.36,28.97]
[1725540161788,3.83276684,132.39,132.36,32.77438904]
[1725540162287,0.05576684,132.39,132.36,28.99678904]
[1725540162796,0.05576684,132.39,132.36,32.77428904]
[1725540162986,0.05576684,132.39,132.36,28.99678904]
[1725540163496,0.05576684,132.39,132.38,28.97]
[1725540163991,0.05576684,132.39,132.38,32.7471]
[1725540164190,1.3872,132.48,132.38,28.97]
[1725540164392,1.3872,132.48,132.41,28.97]
[1725540164788,1.3872,132.48,132.41,32.7461]
[1725540165293,0.05178102,132.46,132.43,0.05251981]
[1725540165695,0.05178102,132.46,132.43,29.02251981]
[1725540165992,0.05178102,132.46,132.43,32.79811981]
[1725540166195,0.05178102,132.46,132.43,29.02251981]
[1725540166792,3.82678102,132.46,132.43,29.02251981]
[1725540167596,3.82678102,132.46,132.43,32.79801981]
[1725540168094,3.7752,132.45,132.43,0.05251981]
[1725540168285,0.05178102,132.46,132.43,0.05251981]
[1725540168990,3.7751,132.45,132.43,0.05251981]
[1725540169400,3.82668102,132.46,132.43,3.82801981]
[1725540169892,0.05178102,132.46,132.43,0.05251981]
[1725540170192,3.7754,132.44,132.43,0.05251981]
[1725540173508,3.7753,132.45,132.43,0.05251981]
[1725540173901,3.7754,132.44,132.43,0.05251981]
[1725540175004,3.7753,132.45,132.43,0.05251981]
[1725540177601,3.7754,132.44,132.43,0.05251981]
[1725540183808,0.05178102,132.46,132.43,0.05251981]
[1725540183809,3.7752,132.45,132.43,0.05251981]
[1725540185515,3.82678102,132.46,132.43,3.82821981]
[1725540186306,3.7752,132.45,132.43,0.05251981]
[1725540186710,0.05178102,132.46,132.43,0.05251981]
[1725540186917,0.05178102,132.46,132.43,29.02251981]
[1725540188316,0.05178102,132.46,132.43,0.05251981]
[1725540188710,3.82678102,132.46,132.43,0.05251981]
[1725540189116,0.05178102,132.46,132.43,0.05251981]
[1725540189911,3.7754,132.44,132.43,0.05251981]
[1725540191919,0.05178102,132.46,132.43,23.25251981]
[1725540192213,3.7742,132.49,132.45,23.2]
[1725540193108,0.05332806,132.48,132.46,0.05068789]
[1725540194316,0.05332806,132.48,132.46,3.82558789]
[1725540196815,0.05332806,132.48,132.47,3.7746]
[1725540197020,0.05332806,132.48,132.46,0.05068789]
[1725540197214,3.7746,132.47,132.46,0.05068789]
[1725540198018,0.05332806,132.48,132.46,0.05068789]
[1725540198423,0.05332806,132.48,132.47,3.7746]
[1725540198718,0.05332806,132.48,132.46,0.05068789]
[1725540200322,0.05332806,132.48,132.47,29.02]
[1725540200912,3.7733,132.52,132.47,29.02]
[1725540201119,2.7488,132.56,132.47,29.02]
[1725540201520,3.773,132.53,132.47,29.02]
[1725540201923,0.05284118,132.51,132.49,0.05261084]
[1725540202124,0.05284118,132.51,132.5,3.7737]
[1725540202829,0.05284118,132.51,132.49,3.82651084]
[1725540203121,3.7737,132.5,132.49,0.05261084]
[1725540203314,29.02,132.52,132.41,1.2971]
[1725540203519,30.394,132.5,132.41,1.2971]
[1725540203921,1.3747,132.49,132.41,5.0732]
[1725540204125,1.3747,132.49,132.41,1.2971]
[1725540204329,0.05666353,132.46,132.44,0.05245812]
[1725540204523,3.7751,132.45,132.44,0.05245812]
[1725540205427,29.07666353,132.46,132.36,29.02]
[1725540205627,29.02,132.46,132.36,29.02]
[1725540206625,0.05243981,132.42,132.4,0.05464112]
[1725540207526,3.7763,132.41,132.4,0.05464112]
[1725540207829,0.05243981,132.42,132.4,0.05464112]
[1725540209025,0.05243981,132.42,132.4,29.07464112]
[1725540209424,0.05243981,132.42,132.4,32.85114112]
[1725540209619,0.05243981,132.42,132.4,0.05464112]
[1725540210623,3.82863981,132.42,132.4,0.05464112]
[1725540211029,0.05243981,132.42,132.4,0.05464112]
[1725540212323,0.05243981,132.42,132.4,3.83114112]
[1725540213530,0.05243981,132.42,132.4,0.05464112]
[1725540214120,0.05243981,132.42,132.4,3.83104112]
[1725540214324,0.05243981,132.42,132.4,0.05464112]
[1725540214530,0.05243981,132.42,132.4,29.07464112]
[1725540215431,0.05243981,132.42,132.4,0.05464112]
[1725540216029,0.05243981,132.42,132.4,3.83114112]
[1725540216832,0.05243981,132.42,132.4,0.05464112]
[1725540217943,0.05243981,132.42,132.4,3.83104112]
[1725540218141,0.05243981,132.42,132.4,0.05464112]
[1725540219242,0.05243981,132.42,132.41,3.7763]
[1725540219944,1.351,132.48,132.4,46.47464112]
[1725540220139,1.3747,132.49,132.43,23.21]
[1725540220541,3.7748,132.47,132.43,26.9856]
[1725540221039,0.05097725,132.46,132.44,0.05268505]
[1725540221942,0.05097725,132.46,132.44,3.82808505]
[1725540222543,3.82607725,132.46,132.44,0.05268505]
[1725540222733,0.05097725,132.46,132.44,0.05268505]
[1725540223733,0.05097725,132.46,132.44,3.82808505]
[1725540224738,0.05097725,132.46,132.45,3.7751]
[1725540225947,0.05097725,132.46,132.45,26.9851]
[1725540233544,3.7741,132.49,132.46,3.7746]
[1725540233742,3.7738,132.5,132.46,23.21]
[1725540233943,3.7738,132.5,132.47,3.7744]
[1725540234149,3.7738,132.5,132.46,23.21]
[1725540234342,3.7736,132.51,132.48,23.21]
[1725540234553,3.82242562,132.51,132.48,27.03575064]
[1725540234751,0.04882562,132.51,132.5,23.21]
[1725540235144,1.3687,132.58,132.5,23.21]
[1725540235453,1.3687,132.58,132.52,23.21]
[1725540235644,3.7724,132.55,132.52,26.9829]
[1725540236355,3.82563798,132.55,132.52,27.03699673]
[1725540236856,0.05323798,132.55,132.52,0.05409673]
[1725540237245,3.7729,132.53,132.52,0.05409673]
[1725540239350,3.7743,132.48,132.46,23.21]
[1725540239650,23.21,132.54,132.46,23.21]
[1725540239849,23.21,132.54,132.41,1.3052]
[1725540239850,23.21,132.5,132.42,23.21]
[1725540240046,3.7755,132.44,132.42,23.21]
[1725540240446,0.05697951,132.44,132.42,23.25793511]
[1725540241858,0.05697951,132.44,132.42,27.03393511]
[1725540243650,3.83247951,132.44,132.42,23.25793511]
[1725540243854,0.05697951,132.44,132.42,23.25793511]
[1725540244456,0.05697951,132.44,132.42,27.03383511]
[1725540244949,0.05697951,132.44,132.43,23.21]
[1725540247761,0.05697951,132.44,132.43,26.9857]
[1725540248461,0.05697951,132.44,132.43,30.75127552]
[1725540250160,1.3144,132.52,132.43,26.97557552]
[1725540250463,1.3144,132.52,132.45,23.21]
[1725540250764,3.7753,132.45,132.44,23.21]
[1725540251061,1.3144,132.52,132.44,23.21]
[1725540251262,1.3144,132.52,132.45,23.21]
[1725540251459,0.04997628,132.49,132.47,0.04925846]
[1725540251656,3.7743,132.48,132.47,0.04925846]
[1725540254066,0.04997628,132.49,132.47,0.04925846]
[1725540254966,3.7743,132.48,132.47,23.25925846]
[1725540255658,3.82407628,132.49,132.47,23.25925846]
[1725540256064,0.04997628,132.49,132.47,23.25925846]
[1725540256567,0.04997628,132.49,132.47,27.03365846]
[1725540257765,0.04997628,132.49,132.48,3.7743]
[1725540258567,3.7738,132.5,132.47,23.25925846]
[1725540258568,1.348,132.55,132.49,3.7739]
[1725540258770,1.348,132.55,132.51,23.21]
[1725540259462,7.5409,132.62,132.53,23.21]
[1725540259671,3.7717,132.57,132.56,0.05583982]
[1725540261468,0.05768955,132.59,132.56,0.05583982]
[1725540262267,3.7717,132.57,132.56,0.05583982]
[1725540264374,3.7728,132.54,132.51,23.21]
[1725540264575,23.21,132.58,132.51,23.21]
[1725540265074,3.7729,132.53,132.51,23.21]
[1725540265370,23.21,132.58,132.51,0.0572211]
[1725540265667,3.7731,132.53,132.51,0.0572211]
[1725540265973,3.82097313,132.53,132.51,0.0572211]
[1725540266282,0.04787313,132.53,132.51,0.0572211]
[1725540266675,0.04787313,132.53,132.51,23.2672211]
[1725540267067,0.04787313,132.53,132.51,27.0406211]
[1725540267575,0.04787313,132.53,132.52,3.7732]
[1725540267765,27.2756,132.62,132.51,23.2672211]
[1725540267967,27.2756,132.62,132.54,23.21]
[1725540268474,3.7718,132.57,132.54,23.21]
[1725540268876,3.82913667,132.57,132.54,23.26320959]
[1725540270679,3.82913667,132.57,132.54,27.03570959]
[1725540271679,0.05733667,132.57,132.54,27.03570959]
[1725540272282,0.05733667,132.57,132.54,23.26320959]
[1725540272474,3.82923667,132.57,132.54,23.26320959]
[1725540274078,0.05733667,132.57,132.54,27.03560959]
[1725540275371,3.82913667,132.57,132.54,27.03560959]
[1725540278184,0.05733667,132.57,132.54,0.05320959]
[1725540278879,0.05733667,132.57,132.47,5.20642523]
[1725540279081,23.21,132.55,132.47,24.6133]
[1725540279283,3.7733,132.52,132.48,3.7743]
[1725540280074,0.05271321,132.51,132.49,13.10576961]
[1725540280280,0.05271321,132.51,132.49,9.33176961]
[1725540280476,0.05271321,132.51,132.49,0.05176961]
[1725540282178,3.7737,132.5,132.49,0.05176961]
[1725540282883,3.82631321,132.51,132.49,0.05176961]
[1725540283589,0.05271321,132.51,132.49,0.05176961]
[1725540284880,3.82621321,132.51,132.49,0.05176961]
[1725540285485,0.05271321,132.51,132.49,0.05176961]
[1725540286985,0.05271321,132.51,132.49,3.82566961]
[1725540287192,0.05271321,132.51,132.5,23.19]
[1725540288388,0.05271321,132.51,132.49,0.05176961]
[1725540288795,3.82641321,132.51,132.49,0.05176961]
[1725540289087,0.05271321,132.51,132.49,0.05176961]
[1725540289592,5.66291454,132.5,132.49,0.05176961]
[1725540290391,9.43661454,132.5,132.49,0.05176961]
[1725540291691,5.66291454,132.5,132.49,0.05176961]
[1725540292691,0.05271321,132.51,132.5,3.7737]
[1725540292986,0.05271321,132.51,132.49,23.24176961]
[1725540293695,5.71562775,132.51,132.5,23.19]
[1725540294100,0.05271321,132.51,132.49,27.01556961]
[1725540294398,5.66291454,132.5,132.49,27.01556961]
[1725540294696,5.66291454,132.5,132.49,0.05176961]
[1725540295192,0.05271321,132.51,132.49,0.05176961]
[1725540295592,3.82621321,132.51,132.49,0.05176961]
[1725540296192,3.82621321,132.51,132.49,23.24176961]
[1725540297001,0.05271321,132.51,132.49,27.01566961]
[1725540299802,0.05271321,132.51,132.5,3.7737]
[1725540300307,0.05271321,132.51,132.49,0.05176961]
[1725540300802,3.7737,132.5,132.49,0.05176961]
[1725540300999,23.24271321,132.51,132.43,23.19]
[1725540301204,1.3983,132.52,132.43,23.19]
[1725540301400,3.774,132.49,132.45,26.9651]
[1725540301604,1.3983,132.52,132.48,23.19]
[1725540301908,3.7733,132.52,132.48,26.9641]
[1725540302105,0.05464332,132.51,132.49,0.05607739]
[1725540302806,3.82824332,132.51,132.49,0.05607739]
[1725540303007,0.05464332,132.51,132.49,0.05607739]
[1725540304410,3.7737,132.5,132.49,0.05607739]
[1725540306811,0.05464332,132.51,132.17,10.46841725]
[1725540307012,3.775,132.46,132.42,23.19]
[1725540307409,1.3247,132.52,132.44,26.9654]
[1725540307812,1.3247,132.52,132.44,23.19]
[1725540308010,3.7743,132.48,132.47,0.05630599]
[1725540308220,23.19,132.49,132.41,23.19]
[1725540308614,23.19,132.49,132.41,26.9662]
[1725540308816,1.3247,132.52,132.39,23.19]
[1725540309011,3.7759,132.43,132.39,26.9668]
[1725540309219,0.05128832,132.42,132.4,0.05781218]
[1725540310028,0.05128832,132.42,132.41,23.19]
[1725540311118,1.2946,132.47,132.41,23.19]
[1725540311321,1.2946,132.47,132.43,23.19]
[1725540311727,3.7751,132.46,132.43,23.19]
[1725540312028,1.2946,132.47,132.43,23.19]
[1725540312328,3.82309837,132.46,132.44,0.05555978]
[1725540312725,3.7751,132.45,132.44,0.05555978]
[1725540313129,0.04809837,132.46,132.44,0.05555978]
[1725540314223,3.7751,132.45,132.44,0.05555978]
[1725540315827,3.7765,132.41,132.34,2.7244]
[1725540316023,23.19,132.44,132.36,23.19]
[1725540316236,1.3657,132.43,132.36,23.19]
[1725540316837,0.05482921,132.41,132.38,0.04949139]
[1725540317231,1.36882921,132.41,132.38,0.04949139]
[1725540317536,3.7769,132.39,132.38,0.04949139]
[1725540318033,7.48580954,132.39,132.38,0.04949139]
[1725540318339,7.60671939,132.39,132.38,0.04949139]
[1725540318735,3.7778,132.36,132.33,23.19]
[1725540319532,3.7776,132.37,132.33,23.19]
[1725540319725,0.05460629,132.36,132.35,23.19]
[1725540320737,0.05460629,132.36,132.35,26.968]
[1725540321037,1.3657,132.43,132.35,23.19]
[1725540321225,1.3657,132.43,132.38,23.19]
[1725540321428,1.3997,132.48,132.4,23.19]
[1725540321631,1.3661,132.47,132.4,23.19]
[1725540321829,3.7756,132.44,132.42,0.05299494]
[1725540322430,3.7757,132.43,132.42,0.05299494]
[1725540323730,3.7766,132.4,132.37,3.7773]
[1725540324738,3.7769,132.39,132.36,23.19]
[1725540324926,0.0528846,132.4,132.36,23.19]
[1725540325132,0.0528846,132.4,132.3,3.9604]
[1725540325133,0.0528846,132.4,132.35,23.19]
[1725540325334,3.7772,132.38,132.35,23.19]
[1725540326133,3.83034308,132.39,132.35,23.19]
[1725540326339,0.05334308,132.39,132.35,23.19]
[1725540326931,3.83024308,132.39,132.35,26.9677]
[1725540327344,0.05334308,132.39,132.35,23.19]
[1725540328035,3.7773,132.38,132.35,23.19]
[1725540330140,0.05334308,132.39,132.31,23.19]
[1725540330335,0.0490906,132.36,132.31,23.19]
[1725540330837,3.7781,132.35,132.31,26.969]
[1725540331339,3.7781,132.35,132.31,23.19]
[1725540331637,3.7781,132.35,132.32,3.7787]
[1725540333343,0.0490906,132.36,132.31,26.969]
[1725540333843,0.0490906,132.36,132.31,23.19]
[1725540334046,23.19,132.35,132.18,7.5658]
[1725540334248,0.05385865,132.28,132.27,1.3728]
[1725540334548,1.2926,132.39,132.27,6.55032623]
[1725540334736,1.2926,132.39,132.33,23.19]
[1725540335141,3.7783,132.34,132.33,23.19]
[1725540336440,0.04786162,132.35,132.33,23.19]
[1725540336645,0.04786162,132.35,132.34,23.19]
[1725540336839,0.04786162,132.35,132.34,26.9683]
[1725540337243,3.7773,132.38,132.34,26.9683]
[1725540337645,23.19,132.45,132.36,23.19]
[1725540338142,3.7767,132.4,132.36,26.9675]
[1725540338344,0.05438471,132.39,132.37,0.05688106]
[1725540338734,3.7771,132.38,132.37,0.05688106]
[1725540338943,3.7771,132.38,132.29,1.3094]
[1725540338944,3.74622128,132.38,132.29,1.3094]
[1725540339140,27.3021,132.38,132.29,1.3094]
[1725540339343,3.7782,132.35,132.3,3.7792]
[1725540339542,31.05776807,132.38,132.29,24.4994]
[1725540339845,31.05776807,132.38,132.29,28.2789]
[1725540340041,0.0493591,132.35,132.32,0.05159966]
[1725540340542,3.7787,132.33,132.32,0.05159966]
[1725540344346,0.0493591,132.35,132.32,0.05159966]
[1725540345349,3.7786,132.33,132.32,0.05159966]
[1725540347653,3.78,132.28,132.24,30.4317]
[1725540347844,7.86776807,132.38,132.23,2.7155]
[1725540348046,29.06,132.31,132.23,2.7155]
[1725540348354,3.7807,132.26,132.23,2.7155]
[1725540348748,0.05674822,132.26,132.23,2.7155]
[1725540349349,3.7811,132.25,132.23,2.7155]
[1725540349550,0.05674822,132.26,132.2,32.8421]
[1725540349755,0.05549103,132.24,132.2,35.6203]
[1725540350148,0.05549103,132.24,132.2,29.06]
[1725540350345,0.05549103,132.24,132.15,29.06]
[1725540350543,3.83888943,132.21,132.15,29.06]
[1725540350754,0.05668943,132.21,132.17,3.7829]
[1725540350950,0.05668943,132.21,132.17,29.06]
[1725540351750,3.83878943,132.21,132.17,29.06]
[1725540352052,0.05668943,132.21,132.17,29.06]
[1725540352448,0.05668943,132.21,132.18,3.7826]
[1725540352646,0.05668943,132.21,132.17,29.06]
[1725540353049,1.347,132.3,132.19,29.06]
[1725540353244,3.7293915,132.31,132.22,29.06]
[1725540353449,3.7802,132.28,132.24,3.7809]
[1725540354147,0.04967352,132.27,132.25,0.05330559]
[1725540356550,0.04967352,132.27,132.25,3.83410559]
[1725540357157,0.04967352,132.27,132.25,0.05330559]
[1725540357954,1.3815,132.37,132.26,29.06]
[1725540358150,1.3815,132.37,132.29,29.06]
[1725540358351,3.778,132.35,132.31,3.7789]
[1725540358660,30.4054,132.4,132.31,29.06]
[1725540358855,3.82826478,132.36,132.33,0.05755999]
[1725540359055,0.05056478,132.36,132.33,0.05755999]
[1725540359757,3.7782,132.35,132.33,0.05755999]
[1725540359958,0.05056478,132.36,132.33,0.05755999]
[1725540360148,29.11056478,132.36,132.33,0.05755999]
[1725540360352,3.7783,132.34,132.33,0.05755999]
[1725540360547,29.11056478,132.36,132.33,0.05755999]
[1725540360548,0.05056478,132.36,132.33,0.05755999]
[1725540360953,3.82836478,132.36,132.33,0.05755999]
[1725540361150,0.05056478,132.36,132.33,0.05755999]
[1725540361754,29.11056478,132.36,132.33,0.05755999]
[1725540361956,3.7783,132.34,132.33,0.05755999]
[1725540364655,0.05056478,132.36,132.33,0.05755999]
[1725540364963,3.74602706,132.35,132.33,0.05755999]
[1725540365564,0.05056478,132.36,132.33,0.05755999]
[1725540365762,3.77466314,132.36,132.33,0.05755999]
[1725540366056,3.82836478,132.36,132.33,0.05755999]
[1725540367363,0.05056478,132.36,132.33,3.83605999]
[1725540369378,1.3974,132.39,132.33,3.83605999]
[1725540369379,29.06,132.44,132.34,29.06]
[1725540369573,0.27781292,132.43,132.34,31.6943]
[1725540369772,3.7785,132.34,132.26,3.83458618]
[1725540369969,29.06,132.36,132.27,2.6343]
[1725540370170,32.89874476,132.36,132.27,2.6343]
[1725540370371,0.05146636,132.33,132.3,0.04762141]
[1725540371567,0.05146636,132.33,132.31,3.7791]
[1725540371773,0.05146636,132.33,132.3,0.04762141]
[1725540372976,0.05146636,132.33,132.31,3.7789]
[1725540374076,0.05146636,132.33,132.32,3.7789]
[1725540374976,29.06,132.41,132.32,29.06]
[1725540375174,241.39372034,132.5,132.28,1.3215]
[1725540375175,3.79073108,132.42,132.33,30.4194]
[1725540375370,3.7768,132.4,132.34,1.3215]
[1725540375982,0.05248065,132.38,132.36,29.11259743]
[1725540376275,3.83572034,132.5,132.37,29.06]
[1725540376473,3.80736372,132.49,132.4,29.06]
[1725540376669,4.0231,132.52,132.44,29.06]
[1725540376974,4.21705135,132.64,132.41,1.3594]
[1725540376975,3.7725,132.55,132.45,29.06]
[1725540377278,0.27757018,132.54,132.49,3.82177258]
[1725540377482,3.82626445,132.56,132.48,29.06]